Cogmind - Beta 16.1 @@@ ROGUE MODE // 2026.04.23 @ 23:13:35 Player: Bereft Result: Destroyed by as-44727 with Assembled Heavy Rifle Performance ------------- Evolutions (0) 0 Regions Visited (2) 400 Robots Destroyed (15) 75 Value Destroyed (349) 349 Prototype IDs (0) 0 Alien Tech Used (0) 0 Bonus (0) 0 TOTAL SCORE: 824 Bonus ------- None Cogmind --------- Core Integrity 0/250 Matter 300/300 Energy 99/100 System Corruption 4% Temperature Cool (0) Movement Core (50) Location -10/Mines Parts ------- > --- POWER (1) -------- (None) > --- PROPULSION (2) --- (None) > --- UTILITY (2) ------ (None) > --- WEAPON (2) ------- (None) > --- INVENTORY (5) ---- Seismic Detector Beam Cannon Light Assault Rifle Grenade Launcher Peak State ------------ > --- POWER ------------ Light Ion Engine > --- PROPULSION ------- Aluminum Leg Aluminum Leg > --- UTILITY ---------- Sensor Array Signal Interpreter > --- WEAPON ----------- Grenade Launcher Mining Laser > --- INVENTORY -------- Small Laser Light Assault Rifle [Rating: 7] Favorites ----------- Power Light Ion Engine Engine Light Ion Engine Propulsion Aluminum Leg Leg Aluminum Leg Hover Unit Hover Unit Utility Signal Interpreter Device Tractor Beam Processor Signal Interpreter Weapon Small Laser Energy Gun Small Laser Ballistic Gun Light Assault Rifle Launcher Grenade Launcher Special Weapon Mining Laser Build | -11 -10 -10 ------- Run | Yrd Mat Min Slots Evolved . | . . . Power . | . . . Propulsion . | . . . Utility . | . . . Weapon . | . . . Parts Attached 19 | 5 13 1 Power 3 | 1 2 . Engine 3 | 1 2 . Core . | . . . Reactor . | . . . Propulsion 5 | 2 3 . Treads . | . . . Leg 4 | 2 2 . Wheel . | . . . Hover 1 | . 1 . Flight . | . . . Utility 4 | . 4 . Device 3 | . 3 . Storage . | . . . Processor 1 | . 1 . Hackware . | . . . Protection . | . . . Artifact . | . . . Weapon 7 | 2 4 1 Energy Gun 2 | 2 . . Energy Cannon . | . . . Ballistic Gun 2 | . 2 . Ballistic Cannon . | . . . Launcher 1 | . 1 . Special Weapon 2 | . 1 1 Impact Weapon . | . . . Slashing Weapon . | . . . Piercing Weapon . | . . . Special Melee Weapon . | . . . Unidentified Prototypes . | . . . Parts Lost 13 | . 10 3 Power 3 | . 2 1 Propulsion 3 | . 3 . Utility 2 | . 2 . Weapon 5 | . 3 2 Highest Loss Streak 5 | . 5 3 To Critical Strikes . | . . . Average Backups 1 | . 1 3 Power . | . . . Propulsion . | . . . Utility . | . . 1 Weapon 1 | . 1 2 Tool/Special . | . . . Unused Backups . | . . . Power . | . . . Propulsion . | . . . Utility . | . . . Weapon . | . . . Tool/Special . | . . . Average Slot Usage (%) 80 | . 81 75 Engine 11 | . 11 10 Leg 22 | . 24 8 Hover 1 | . . 11 Device 11 | . 11 11 Processor 6 | . 5 11 Energy Gun 11 | . 12 . Ballistic Gun 5 | . 5 10 Launcher 6 | . 5 10 Special Weapon 2 | . 2 . Peak Build Rating 7 | 5 7 7 Average Rating 5 | 3 5 5 On Entrance 4 | . 5 7 Avg Prop Armor Cover (%) 9 | . 9 9 Naked Turns 28 | . . 28 Heaviest Build 8 | 6 8 8 Greatest Support 20 | 20 20 6 Greatest Overweight (x) 1 | . 1 1 Average Overweight (x) . | . . . Largest Inventory Capacity 5 | 5 5 5 Average Capacity 5 | 5 5 5 Most Carried 4 | . 3 4 Average Carried 1 | . 1 3 Final Capacity 5 | 5 5 5 Final Carried 4 | . 3 4 Class Distribution -------------------- 100% | Mutant Dominant Class ---------------- Mutant | -10/Materials Mutant | -10/Mines Resources | -11 -10 -10 ----------- Run | Yrd Mat Min Matter Collected 452 | 180 258 14 Remotely 120 | . 120 . Salvage Created 335 | . 335 . Parts 20 | . 20 . Haulers Intercepted . | . . . Recyclers Shooed 1 | . 1 . Parts Field Recycled . | . . . Retrieved Matter . | . . . Parts Self-Destructed . | . . . Prevented . | . . . Parts Restored . | . . . Kills | -11 -10 -10 ------- Run | Yrd Mat Min Combat Hostiles Destroyed 11 | . 11 . Melee 1 | . 1 . Guns 7 | . 7 . AOE 3 | . 3 . Classes Destroyed 4 | . 4 . Builder 1 | . 1 . Watcher 3 | . 3 . Swarmer 6 | . 6 . Grunt 5 | . 5 . Best Kill Streak 5 | . 5 . Combat Bots Only 3 | . 3 . Max Kills in Single Turn 2 | . 2 . Gunslinging . | . . . Exploded 2 | . 2 . Melee 1 | . 1 . Uniques/NPCs Destroyed . | . . . Combat | -11 -10 -10 -------- Run | Yrd Mat Min Hostile Shots Fired 118 | . 100 18 Missed 26 | . 22 4 Hits 92 | . 78 14 Melee 5 | . . 5 Projectile 87 | . 78 9 Damage Taken 1029 | . 757 272 Core 255 | . 168 87 Absorbed by Shields . | . . . Core Remaining (%) 100 | 100 . . Volleys Fired 72 | . 68 4 Largest 2 | . 2 2 Hottest 140 | . 100 140 Shots Fired 105 | . 100 5 Gun 97 | . 93 4 Cannon . | . . . Launcher 5 | . 5 . Special 3 | . 2 1 Kinetic 49 | . 47 2 Thermal 46 | . 43 3 Explosive 5 | . 5 . Electromagnetic 5 | . 5 . Robot Hit Streak 5 | . 5 1 Robot Miss Streak 7 | . 7 1 Penetration Max . | . . . Secondary Targets . | . . . Shots Hit Robots 44 | . 41 3 Core Hits 30 | . 29 1 Critical Kills . | . . . Critical Parts Destroyed . | . . . Critical Strikes . | . . . Melee Attacks . | . . . Impact . | . . . Slashing . | . . . Piercing . | . . . Sneak Attacks . | . . . Combat Hostiles . | . . . Follow-up Attacks . | . . . Damage Inflicted 932 | . 899 33 Guns 452 | . 421 31 Cannons . | . . . Explosions 447 | . 447 . Melee . | . . . Ramming 33 | . 31 2 Kinetic 218 | . 208 10 Thermal 372 | . 351 21 Explosive 272 | . 272 . Electromagnetic 37 | . 37 . Impact . | . . . Slashing . | . . . Piercing . | . . . Highest Corruption 4 | . 1 4 Average Corruption 1 | . 1 1 Corruption Purged . | . . . Corruption Blocked . | . . . Effects 9 | . 8 1 Message Errors 1 | . 1 . Matter Fused 2 | . 2 . Heat Flow Errors 1 | . . 1 Data Loss (minor) 4 | . 4 . Weapon Failures 1 | . 1 . Overload Shots . | . . . Overflow Damage 35 | . 35 . Projectiles . | . . . Explosions 35 | . 35 . Melee . | . . . Knockbacks 1 | . 1 . Impact 1 | . 1 . Kinetic . | . . . Secondary . | . . . Self-Inflicted Damage 55 | . 54 1 Shots 3 | . 3 . Rammed 1 | . . 1 Targets Rammed 21 | . 20 1 Kicked 20 | . 20 . Crushed . | . . . Highest Temperature 213 | . 54 213 Average Temperature 29 | . 21 59 Received Heat Transfer 195 | . 135 60 Siege Activations . | . . . Martial Activations . | . . . Shielding Activations . | . . . Robots Disrupted 1 | . 1 . Combat Hostiles . | . . . Robots Corrupted . | . . . Combat Hostiles . | . . . Parts Fried . | . . . Impact Corruptions . | . . . Robots Melted . | . . . Combat Hostiles . | . . . Parts Melted . | . . . Heat Transferred 650 | . 600 50 Parts Sabotaged . | . . . Parts Stolen . | . . . Parts Stripped . | . . . Power Chain Reactions 2 | . 2 . Alert | -11 -10 -10 ------- Run | Yrd Mat Min Maximum Alert Level . | . . . Low Security (%) 100 | 100 100 100 Level 1 . | . . . Level 2 . | . . . Level 3 . | . . . Level 4 . | . . . Level 5 . | . . . High Security . | . . . Max Security . | . . . Peak Influence 163 | . 163 13 Initial 13 | . . 13 Average 46 | . 53 2 Influence Increases 413 | . 412 1 Destroy 0b10 Robot/C 220 | . 220 . Destroy 0b10 Robot/NC 20 | . 20 . Destroy Leader 46 | . 46 . Disable Machine 60 | . 60 . Destroy Structure 67 | . 66 1 Influence Decreases 413 | . 376 37 Entered New Map 23 | . . 23 Time Decay 283 | . 270 13 Lost Part 91 | . 90 1 Purge Threat 16 | . 16 . Squads Dispatched . | . . . Investigation . | . . . Extermination . | . . . Reinforcement . | . . . Assault . | . . . Garrison . | . . . Intercept . | . . . Searches Triggered . | . . . Construction Impeded . | . . . Haulers Reinforced . | . . . Active Scanning Responses . | . . . Cargo Convoy Interrupts . | . . . Stealth | -11 -10 -10 --------- Run | Yrd Mat Min Distress Signals 2 | . 2 . Communications Jammed . | . . . Distress Signals . | . . . Times Spotted 27 | . 19 8 Peak Tracking Total 6 | . 5 6 Tactical Retreats 2 | . . 2 Traps | -11 -10 -10 ------- Run | Yrd Mat Min Traps Triggered . | . . . Indirectly . | . . . Trap Hack Attempts . | . . . Triggered . | . . . Disarmed . | . . . Reprogrammed . | . . . Reused . | . . . Traps Extracted . | . . . Installed . | . . . Triggered . | . . . Machines | -11 -10 -10 ---------- Run | Yrd Mat Min Machines Disabled 4 | . 4 . Max in Single Turn 2 | . 2 . Machines Repaired . | . . . Machines Dismantled . | . . . Machines Sabotaged . | . . . Overloaded Fab Kills . | . . . Hacking | -11 -10 -10 --------- Run | Yrd Mat Min Machines Accessed 3 | . 3 . Terminals 2 | . 2 . Fabricators . | . . . Repair Stations 1 | . 1 . Recycling Units . | . . . Scanalyzers . | . . . Garrison Access . | . . . Total Hacks 7 | . 7 . Successful 4 | . 4 . Failed 3 | . 3 . Catastrophic . | . . . Database Lockouts . | . . . Manual . | . . . Terminals 4 | . 4 . Fabricators . | . . . Repair Stations 3 | . 3 . Recycling Units . | . . . Scanalyzers . | . . . Garrison Access . | . . . Terminal Hacks 2 | . 2 . Record 1 | . 1 . Unreport Threat 1 | . 1 . Fabricator Hacks . | . . . Repair Station Hacks 2 | . 2 . Scan Component 1 | . 1 . Refit 1 | . 1 . Recycling Unit Hacks . | . . . Scanalyzer . | . . . Garrison Access Hacks . | . . . Unauthorized Hacks . | . . . Terminals . | . . . Fabricators . | . . . Repair Stations . | . . . Recycling Units . | . . . Scanalyzers . | . . . Garrison Access . | . . . Data Cores Recovered . | . . . Used . | . . . Hacking Detections 2 | . 2 . Full Trace Events 2 | . 2 . Feedback Events 1 | . 1 . Corruption 1 | . 1 . Feedback Blocked . | . . . Robot Schematics Acquired . | . . . Robots Built . | . . . Authchips . | . . . Time . | . . . Total Robot Build Rating . | . . . Part Schematics Acquired . | . . . Parts Built . | . . . Authchips . | . . . Time . | . . . Total Part Build Rating . | . . . Part Studies Acquired . | . . . Parts Repaired . | . . . Time . | . . . Parts Recycled . | . . . Recycled Matter . | . . . Retrieved Matter . | . . . Retrieved Components . | . . . Parts Scanalyzed . | . . . Part Schematics Acquired . | . . . Parts Damaged . | . . . Bothacking | -11 -10 -10 ------------ Run | Yrd Mat Min Used RIF Installer . | . . . Robots Hacked . | . . . Non-combat . | . . . Combat . | . . . Robot Hacks Applied . | . . . Relay Couplers Released . | . . . Fabnet Peak Effective % . | . . . Robots Rewired . | . . . Allies Hacked . | . . . Hacks Repelled . | . . . Allies | -11 -10 -10 -------- Run | Yrd Mat Min Total Allies . | . . . Largest Group . | . . . Highest-Rated Group . | . . . Highest-Rated Ally . | . . . Total Orders . | . . . Ally Attacks . | . . . Total Damage . | . . . Kills . | . . . Allies Corrupted . | . . . Allies Melted . | . . . Intel | -11 -10 -10 ------- Run | Yrd Mat Min Active Infowar (turns) 570 | . 455 115 Sensors 570 | . 455 115 Robot Analysis Total . | . . . Derelict Logs Recovered 1 | . . 1 Drone Launches . | . . . Drone Recoveries . | . . . Exploration | -11 -10 -10 ------------- Run | Yrd Mat Min Turns Passed 1491 | 54 1294 143 Spaces Moved 786 | 41 613 132 Core 58 | 3 . 55 Treads . | . . . Legs 640 | 38 602 . Wheels . | . . . Hover 88 | . 11 77 Flight . | . . . Fastest Speed 50 | 50 120 50 Average Speed 115 | 114 120 95 Slowest Speed 130 | 120 130 130 Overloaded Moves . | . . . Propulsion Burnouts . | . . . Robots Hopped . | . . . Potential Cave-ins . | . . . Cave-ins Triggered . | . . . Exploration Rate (%) 35 | 4 69 34 Regions Visited 2 Branch Regions 1 Pre-discovered Areas 1 | . . 1 Known Exits Taken 1 | . 1 . Unknown Exits Taken 1 | 1 . . Scrap Searched 1 | . . 1 Spaces Dug . | . . . Terrain Destroyed 81 | . 80 1 Melee . | . . . Projectile 1 | . . 1 AOE 80 | . 80 . Terrain Rammed . | . . . Walls Destroyed . | . . . Machines Disabled . | . . . Actions | -11 -10 -10 --------- Run | Yrd Mat Min Total 1250 | 45 1064 141 Wait 344 | . 344 . Move 784 | 40 612 132 Hop . | . . . Pick Up 5 | . 4 1 Fast Attach 16 | 5 11 . Attach 1 | . 1 . Detach . | . . . Swap 5 | . 3 2 Drop 2 | . 1 1 Fire 72 | . 68 4 Melee . | . . . Ram 1 | . . 1 Kick 20 | . 20 . Crush . | . . . Escape Stasis . | . . . Rewire . | . . . Trap . | . . . Miscellaneous . | . . . Route ------- -11/Scrapyard -10/Materials (discovered 3 exits: *Mat x2 / *Min) -10/Mines History --------- Turn | Location | Event 8 | -11/Scrapyard | Discovered new exit (range 14) 55 | -11/Scrapyard | Entered Materials 302 | -10/Materials | Build established: Mutant 640 | -10/Materials | Discovered new exit (range 11) 719 | -10/Materials | Core integrity fell below 50% 737 | -10/Materials | Lost 3 parts (2n1u) 906 | -10/Materials | Discovered new exit (range 5) 1084 | -10/Materials | Lost 5 parts (1p1n1u2w) 1110 | -10/Materials | Discovered new exit (range 16) 1170 | -10/Materials | Identified exit to Materials 1312 | -10/Materials | Identified exit to Mines 1349 | -10/Materials | Entered Mines 1422 | -10/Mines | Assembled infested the area 1456 | -10/Mines | Core integrity fell below 20% 1464 | -10/Mines | Released all parts (3) 1492 | -10/Mines | Destroyed by as-44727 with Assembled Heavy Rifle Last Messages --------------- Dropped Aluminum Leg. Knocked back. Slammed into T-07 Excavator. Lgt. Ion Engine destroyed. Mining Laser destroyed. System corrupted by crushing effect (+3). Sml. Laser destroyed. Released Hover Unit. Released Sensor Array. Released Signal Interpreter. Searching scrap... Found Beam Cannon. Found 43 Matter. System corrupted: Heat flow error (+238). Acquired 14 matter. as-30324 sneak attacks. T-07 Excavator system corrupted by crushing effect. as-30324 destroyed. Acquired Beam Cannon. Map ----- +----------------------------------------------------+ | ??????????????????????????????????????????? | | ??????????????????????????????????????????? | | ??????????????????????????????????????????? | | ??????????????????????????????????????????? | | ??????????????????????????????????????????? | | ??????????????????????????????????????????? | | ??????????????????????????????????????????? | | ?##???????????????????????????????????????? | | ???????????????????????????????????????? | | ???????????????????????????????????????? | | # ##########################?????????????? | | ## #?????????????? | | ? ## #?????????????? | | ? #?# ## #?????????????? | | ?? #?# %## #?????????????? | | ?? #?#=%## #?????????????? | | ??# #?#% !! #?????????????? | | ### #?# ## a ! !! #?????????????? | | # = #?# ## a!!! #?????????????? | | # #?# ## !!! #?????????????? | | # ###?# ## #?????????????? | | #???# ## #?????????????? | | # #???# %## #?????????????? | | #% #???# ## #?????????????? | | # #???# ## #?????????????? | | #???# ## @ #?????????????? | | ##??# ###################?????????????? | | #### #???????????????????????????????? | | #???????????????????????????????? | | ## ## #?????????????????????????? | | ##### ## #????????????????????????? | | #???# ######## #?????????????????????? | | ????# #????????? #????????????????????? | | ????# ??????????? #????????????????????? | | ????###?????????????##????????????????????? | | ??????????????????????????????????????????? | | ??????????????????????????????????????????? | | #?????????????????????????????????????????? | | #?????????????????????????????????????????? | | #?????????????????????????????????????????? | | #?????????????????????????????????????????? | | #?????????????????????????????????????????? | | ??????????????????????????????????????????? | | ??????????????????????????????????????????? | | ??????????????????????????????????????????? | | ??????????????????????????????????????????? | | | | | | | | | +----------------------------------------------------+ Best States ------------- Heat Dissipation 25 Energy Generation 10 Energy Capacity 125 Matter Stores 300 Matter Capacity 300 Sight Range 16 Robot Scan Range 14 Terrain Scan Density 10 Evasion (%) 55 Item Schematics ----------------- None Robot Schematics ------------------ None Fabricated ------------ Nothing Repaired ---------- Nothing Studied --------- None Alien Tech Used ----------------- None Achievements -------------- None Challenges ------------ None Game ------ Seed ImprinterJunkSegregator Manual? 0 Play Time 00:12:42 Cumulative 21.7 hours Start 2026.04.23 @ 23:02:01 End 2026.04.23 @ 23:13:35 Sessions 1 Manual Loads 0 Difficulty Rogue Special Mode None Game No. 33 Rogue 33 Adventurer 0 Explorer 0 Win Type - Total 0 Types 0/0/0/0/0/0/0/0/0/0 Lore% 14 Gallery% 21 Achievement% 19 Wizard Run 0 Options --------- Layout 1 ASCII 0 Keyboard 0 Movement Numpad Keybinds 0 Fullscreen 1 Font 32/SmallcapsGlow Map View 50x35 Zoom Use 0% Tactical HUD 0 Map Filters NONE Filters NONE Steam 1 RUN: 1aca900e-47e4-44df-94aa-c0fecc1ebc4d